bitfinex/quotes_ETHUSD_20250821
["timestamp","ask_amount","ask_price","bid_price","bid_amount"]
[1755776485177,0.3028,4292.7,4292.4,4.07]
[1755776487091,0.4328,4292.6,4292.4,4.07]
[1755776487394,0.7356,4292.5,4292.4,0.66]
[1755776487573,0.7356,4292.5,4292.4,4.727]
[1755776489701,0.7356,4292.5,4292.0,1.792]
[1755776490001,0.7356,4292.5,4291.7,0.001]
[1755776490002,0.4328,4292.4,4291.8,4.063]
[1755776490171,0.3028,4291.9,4291.7,0.001]
[1755776490702,0.4328,4291.8,4291.7,0.001]
[1755776490863,0.7356,4291.8,4291.7,0.001]
[1755776498309,1.10916,4291.8,4291.7,0.001]
[1755776505761,1.13416,4291.8,4291.7,0.001]
[1755776505909,0.4578,4292.7,4291.7,0.3047]
[1755776506230,0.4578,4293.1,4291.8,18.06450346]
[1755776506430,0.4578,4293.1,4292.7,0.3037]
[1755776507012,0.002,4293.3,4292.7,0.3037]
[1755776508044,0.3226,4292.8,4291.8,18.04120322]
[1755776508245,0.3226,4292.8,4291.8,22.08220322]
[1755776508246,0.022,4292.8,4291.8,22.08220322]
[1755776508450,0.022,4292.8,4292.1,0.66]
[1755776508663,0.0212,4292.8,4292.7,0.3037]
[1755776510349,0.0212,4292.8,4292.7,1.43279536]
[1755776510555,0.0212,4292.8,4292.7,2.54937173]
[1755776511357,0.0212,4292.8,4292.7,0.9637]
[1755776512245,0.0212,4292.8,4292.7,1.4095]
[1755776513527,0.0212,4292.8,4292.7,4.54959536]
[1755776515661,0.0212,4292.8,4292.7,4.66675336]
[1755776515957,0.0212,4292.8,4292.7,4.5263]
[1755776516455,0.0212,4292.8,4292.7,4.66647444]
[1755776516657,0.0212,4292.8,4292.7,9.24127117]
[1755776516865,0.0212,4292.8,4292.7,13.40797581]
[1755776517560,0.0212,4292.8,4292.7,13.52375083]
[1755776517861,0.0212,4292.8,4292.7,11.19421465]
[1755776520423,0.0212,4292.8,4292.7,28.45964285]
[1755776520661,0.0212,4292.8,4292.7,32.48864285]
[1755776523262,0.0212,4292.8,4292.7,34.81817903]
[1755776523760,0.002,4293.3,4293.2,21.04120322]
[1755776523964,0.002,4293.3,4293.2,36.13402777]
[1755776524167,0.002,4293.3,4293.2,36.57982777]
[1755776525335,0.02,4293.8,4293.7,8.44899364]
[1755776525580,0.02,4293.8,4293.7,34.46269686]
[1755776525783,0.02,4293.8,4293.7,34.90849686]
[1755776525987,0.02,4293.8,4293.7,37.27063649]
[1755776526551,0.02,4293.8,4293.7,33.08063649]
[1755776526968,0.02,4293.8,4293.7,33.53843649]
[1755776527482,0.02,4294.8,4294.7,21.04120322]
[1755776527671,0.02,4294.8,4294.7,28.20059521]
[1755776528560,0.02,4294.8,4294.7,31.08134655]
[1755776529377,0.02,4294.8,4294.7,31.25264025]
[1755776529564,0.02,4294.8,4294.7,28.92418891]
[1755776530100,0.02,4294.8,4294.7,7.08848569]
[1755776530258,0.324,4294.8,4294.7,28.19888891]
[1755776530454,0.02,4294.8,4294.7,28.48868891]
[1755776530686,0.02,4294.8,4294.7,28.92418891]
[1755776530872,0.02,4294.8,4294.7,31.25264025]
[1755776531079,0.02,4294.8,4294.7,28.92418891]
[1755776531278,0.02,4294.8,4294.7,27.23364025]
[1755776531586,0.02,4294.8,4294.7,31.25264025]
[1755776531799,0.02,4295.8,4295.4,0.66]
[1755776531989,0.02,4295.8,4295.7,21.33100322]
[1755776532164,0.02,4295.8,4295.7,25.17720322]
[1755776532591,0.3232,4295.8,4295.7,25.17720322]
[1755776532799,0.7881,4295.8,4295.7,25.17620322]
[1755776533161,0.0192,4295.8,4295.7,25.46600322]
[1755776533367,0.0192,4295.8,4295.7,26.7695412]
[1755776535195,0.0192,4295.8,4295.7,26.4787412]
[1755776535616,0.0192,4295.8,4295.7,26.7685412]
[1755776536706,0.0192,4295.8,4295.7,27.2040412]
[1755776537784,0.0192,4295.8,4295.7,26.7685412]
[1755776538131,0.0192,4295.8,4295.7,27.2040412]
[1755776538994,0.0192,4295.8,4295.7,29.5319505]
[1755776539295,0.002,4296.9,4295.7,29.5319505]
[1755776539296,0.002,4296.9,4295.9,0.66]
[1755776539495,0.002,4296.9,4296.7,4.0658]
[1755776539710,0.002,4296.9,4296.7,9.89707367]
[1755776540006,0.326,4296.8,4296.7,9.584]
[1755776540200,0.022,4296.8,4296.7,9.584]
[1755776541033,0.022,4296.8,4296.7,26.96520322]
[1755776541253,0.326,4296.8,4296.7,12.23593963]
[1755776541403,0.7909,4296.8,4296.7,26.96520322]
[1755776541604,0.022,4296.8,4296.7,26.96520322]
[1755776541905,0.7909,4296.8,4296.7,9.584]
[1755776542122,0.326,4296.8,4296.7,9.584]
[1755776542328,0.022,4296.8,4296.7,9.584]
[1755776542527,0.022,4296.8,4296.7,10.68212243]
[1755776542896,0.022,4296.8,4296.7,10.39232243]
[1755776543332,0.022,4296.8,4296.7,10.68212243]
[1755776543742,0.022,4296.8,4296.7,5.567]
[1755776543743,0.7909,4296.8,4296.7,5.567]
[1755776543938,0.7909,4296.8,4296.7,9.584]
[1755776544110,0.7909,4296.8,4296.7,5.567]
[1755776544425,0.7909,4296.8,4296.7,9.584]
[1755776544745,0.022,4296.8,4296.7,9.8738]
[1755776545036,0.022,4296.8,4296.7,9.584]
[1755776545037,0.7909,4296.8,4296.7,9.584]
[1755776545643,0.7909,4296.8,4296.7,5.567]
[1755776545845,0.7909,4296.8,4296.7,9.583]
[1755776546326,0.326,4296.8,4296.7,9.583]
[1755776546654,0.022,4296.8,4296.7,10.8311]
[1755776548438,0.022,4296.8,4296.7,13.2911]
[1755776549028,0.022,4296.8,4296.7,9.2751]
[1755776549258,0.022,4296.8,4296.7,13.2911]
[1755776549858,0.022,4296.8,4296.7,13.7266]
[1755776550046,0.022,4296.8,4296.7,16.05396751]
[1755776550242,0.022,4296.8,4296.7,13.2911]
[1755776550653,0.326,4296.8,4296.7,5.567]
[1755776550858,0.326,4296.8,4296.7,9.583]
[1755776551044,0.022,4296.8,4296.7,9.583]
[1755776551249,0.022,4296.8,4296.7,12.3328]
[1755776551953,0.022,4296.8,4296.7,12.043]
[1755776552275,0.022,4296.8,4296.7,14.69493963]
[1755776552975,0.7909,4296.8,4296.7,13.773]
[1755776553148,0.326,4296.8,4296.7,13.773]
[1755776553350,0.022,4296.8,4296.7,27.13820322]
[1755776553557,0.022,4296.8,4296.7,33.90400322]
[1755776554077,0.022,4296.8,4296.7,33.61420322]
[1755776554239,0.022,4296.8,4296.7,35.97634285]
[1755776554574,0.022,4296.8,4296.7,26.21044481]
[1755776554963,0.022,4296.8,4296.7,22.19444481]
[1755776555147,0.022,4296.8,4296.7,26.20944481]
[1755776555352,0.022,4296.8,4296.7,26.49924481]
[1755776556383,0.0212,4296.8,4296.7,26.49924481]
[1755776557557,0.0212,4296.8,4296.7,26.20944481]
[1755776557789,0.0212,4296.8,4296.7,22.19444481]
[1755776557990,0.3121,4296.8,4296.7,23.84730518]
[1755776559156,0.0212,4296.8,4296.7,24.14970518]
[1755776559592,0.0212,4296.8,4296.7,23.84730518]
[1755776559811,0.0212,4296.8,4296.7,24.14970518]
[1755776560109,0.0212,4296.8,4296.7,23.84730518]
[1755776560683,0.0212,4296.8,4296.7,24.14970518]
[1755776560890,0.0212,4296.8,4296.7,26.19994203]
[1755776561056,0.0212,4296.8,4296.7,26.50234203]
[1755776563056,0.00207006,4296.8,4296.7,29.61369043]
[1755776563271,0.00207006,4296.8,4296.7,29.28460954]
[1755776563668,0.00207006,4296.8,4296.7,14.56963685]
[1755776563873,0.00207006,4296.8,4296.7,26.19994203]
[1755776564081,0.00207006,4296.8,4296.7,26.50234203]
[1755776564484,0.00207006,4296.8,4296.7,28.82970954]
[1755776564772,0.00207006,4296.8,4296.7,26.19994203]
[1755776564972,0.29297006,4296.8,4296.7,26.19994203]
[1755776565800,0.72737006,4296.8,4296.7,26.19994203]
[1755776566507,0.29297006,4296.8,4296.7,26.19994203]
[1755776568480,0.00207006,4296.8,4296.7,22.18494203]
[1755776568804,0.00207006,4296.8,4296.7,26.19994203]
[1755776570101,0.00207006,4296.8,4296.7,26.50234203]
[1755776570305,0.00207006,4296.8,4296.7,28.82970954]
[1755776570805,0.00207006,4296.8,4296.7,28.92298254]
[1755776571005,0.00207006,4296.8,4296.7,29.26188254]
[1755776571208,0.00207006,4296.8,4296.7,29.37788254]
[1755776571608,0.00207006,4296.8,4296.7,28.92298254]
[1755776572008,0.00207006,4296.8,4296.7,29.37788254]
[1755776572309,0.00207006,4296.8,4296.7,28.92298254]
[1755776573509,0.00207006,4296.8,4296.7,24.90798254]
[1755776573685,0.00207006,4296.8,4296.7,28.92198254]
[1755776574812,0.00207006,4296.8,4296.7,29.37688254]
[1755776577014,0.00207006,4296.8,4296.7,29.68615949]
[1755776578110,0.00207006,4296.8,4296.7,29.23125949]
[1755776578795,0.00207006,4296.8,4296.7,25.21725949]
[1755776579115,0.00207006,4296.8,4296.7,28.61958254]
[1755776579326,0.00207006,4296.8,4296.7,22.27821503]
[1755776579486,0.00207006,4296.8,4296.7,23.27857818]
[1755776579487,0.72737006,4296.8,4296.7,23.27857818]
[1755776579682,0.72737006,4296.8,4296.7,23.93857818]
[1755776580226,0.72657006,4296.8,4296.7,13.80557818]
[1755776580517,0.72657006,4296.8,4296.7,1.999273]
[1755776580705,0.72657006,4296.8,4296.7,5.803]
[1755776581413,0.72657006,4296.8,4296.7,1.79]
[1755776581614,1.56095758,4296.8,4296.7,5.803]
[1755776581805,0.72657006,4296.8,4296.7,5.803]
[1755776582010,0.72657006,4296.8,4296.7,6.463]
[1755776582207,0.72657006,4296.8,4296.7,5.803]
[1755776582408,0.72657006,4296.8,4296.7,1.79]
[1755776582618,0.72657006,4296.8,4296.7,5.803]
[1755776584534,0.72657006,4296.8,4296.7,6.463]
[1755776585991,0.72657006,4296.8,4296.2,0.001]
[1755776586228,7.61530518,4296.3,4296.2,0.001]
[1755776586404,8.6677357,4296.3,4296.2,0.001]
[1755776586589,1.48683052,4296.3,4296.2,0.001]
[1755776587092,9.1021357,4296.3,4296.2,0.001]
[1755776587304,13.8921357,4296.3,4296.2,0.001]
[1755776587509,13.8921357,4296.3,4295.8,0.02]
[1755776587705,10.61530518,4295.9,4295.8,0.02]
[1755776587999,3.0,4295.8,4295.6,0.001]
[1755776588199,0.3164,4295.7,4295.6,0.001]
[1755776588399,0.7807,4295.7,4295.6,0.001]
[1755776590326,21.13544555,4295.7,4295.6,0.001]
[1755776590532,21.89697607,4295.7,4295.6,0.001]
[1755776591028,1.07793052,4295.7,4295.6,0.001]
[1755776591227,0.7807,4295.7,4295.6,0.001]
[1755776599307,0.02127006,4296.8,4295.7,0.66]
[1755776599640,0.4643,4296.7,4295.7,0.66]
[1755776599938,0.3164,4295.8,4295.7,0.66]
[1755776600336,0.4643,4296.1,4295.7,0.66]
[1755776601919,0.02127006,4296.8,4295.7,0.66]
[1755776602154,0.4643,4296.4,4295.7,0.66]
[1755776603054,0.3164,4295.8,4295.7,0.66]
[1755776603259,0.4643,4296.2,4295.7,0.66]
[1755776603754,0.02127006,4296.8,4295.8,0.02327855]
[1755776604163,0.02127006,4296.8,4295.7,0.66]
[1755776604164,0.42599707,4296.8,4295.7,0.66]
[1755776605755,0.4643,4296.7,4295.7,0.66]
[1755776608058,0.3164,4295.8,4295.7,0.66]
[1755776608268,0.4643,4296.2,4295.7,0.66]
[1755776608649,0.4643,4296.6,4295.7,0.66]
[1755776610774,0.002,4296.2,4295.7,0.66]
[1755776613574,0.4663,4296.2,4295.7,0.66]
[1755776614272,0.002,4296.2,4295.7,0.66]
[1755776614954,0.002,4296.2,4296.1,8.59157404]
[1755776615154,0.002,4296.2,4296.1,11.70757404]
[1755776615357,0.002,4296.2,4296.1,12.24477104]
[1755776616557,0.002,4296.2,4296.1,16.25977104]
[1755776620979,0.002,4296.2,4296.1,20.44977104]
[1755776621294,0.002,4296.2,4296.1,7.19]
[1755776621295,0.3083,4296.2,4296.1,7.19]
[1755776621602,0.002,4296.2,4296.1,11.865]
[1755776621771,0.002,4296.2,4296.1,12.176]
[1755776622190,0.002,4296.2,4296.1,9.176]
[1755776622449,0.002,4296.2,4296.1,8.865]
[1755776622674,0.002,4296.2,4296.1,9.176]
[1755776622883,0.002,4296.2,4296.1,8.865]
[1755776624180,0.3083,4296.2,4296.1,8.865]
[1755776625355,0.7784,4296.2,4296.1,4.19]
[1755776625554,1.6184074,4296.2,4295.6,5.806]
[1755776625789,1.1483074,4296.2,4295.6,5.806]
[1755776625990,0.4701,4296.1,4295.6,5.806]
[1755776626293,0.3063,4295.7,4295.6,5.806]
[1755776626469,0.7764,4295.7,4295.6,5.806]
[1755776626878,0.7764,4295.7,4295.6,4.015]
[1755776627397,0.7764,4295.7,4295.6,0.001]
[1755776627597,0.7756,4295.7,4295.6,0.001]
[1755776627896,1.26322018,4295.7,4295.6,0.001]
[1755776628310,0.7756,4295.7,4295.6,0.001]
[1755776628513,0.4721,4296.2,4295.7,0.66]
[1755776628670,0.002,4296.2,4295.7,4.69727909]
[1755776628865,0.002,4296.2,4295.7,4.674]
[1755776629075,0.002,4296.2,4295.8,0.02327855]
[1755776629498,0.002,4296.2,4295.7,12.29567404]
[1755776629499,0.002,4296.2,4295.7,4.674]
[1755776629877,0.002,4296.2,4295.8,0.02327855]
[1755776630380,0.002,4296.2,4295.7,4.674]
[1755776630577,0.4721,4296.2,4295.7,4.674]
[1755776631197,0.4721,4296.2,4295.7,0.66]
[1755776631398,0.3063,4295.8,4295.7,0.66]
[1755776631781,0.7764,4295.8,4295.7,0.66]
[1755776631980,0.7764,4295.8,4295.6,0.001]
[1755776632283,0.7764,4295.8,4295.7,0.66]
[1755776632606,0.002,4296.2,4295.7,0.971]
[1755776632919,0.4721,4296.2,4295.7,0.971]
[1755776634114,0.4721,4296.2,4295.8,0.02327855]
[1755776634981,0.002,4296.2,4295.8,0.02327855]
[1755776635405,0.002,4296.2,4295.7,0.66]
[1755776635913,0.4701,4296.1,4295.7,0.66]
[1755776639414,0.002,4296.2,4295.7,0.66]
[1755776639618,0.002,4296.2,4295.8,0.02327855]
[1755776639819,0.002,4296.2,4296.1,0.971]
[1755776640017,0.002,4296.2,4296.1,12.72267404]
[1755776640235,0.002,4296.2,4296.1,13.15237404]
[1755776640519,0.002,4296.2,4296.1,5.5307]
[1755776642802,0.002,4296.2,4296.1,5.101]
[1755776643019,0.002,4296.2,4296.1,7.32811653]
[1755776644423,0.002,4296.2,4296.1,3.74381653]
[1755776644622,0.002,4296.2,4296.1,7.78009345]
[1755776644788,0.002,4296.2,4296.1,7.75681653]
[1755776644995,0.002,4296.2,4296.1,10.75681653]
[1755776645193,0.002,4296.2,4296.1,13.21081653]
[1755776645494,0.002,4296.2,4296.1,10.75681653]
[1755776645721,0.002,4296.2,4296.1,7.789]
[1755776645902,0.7784,4296.2,4296.1,4.673]
[1755776646395,0.002,4296.2,4296.1,0.971]
[1755776646622,0.002,4296.2,4296.1,5.00727692]
[1755776646921,0.3083,4296.2,4296.1,0.66]
[1755776647122,0.002,4296.2,4296.1,5.00727692]
[1755776647304,0.002,4296.2,4296.1,4.984]
[1755776647617,0.002,4296.2,4296.1,0.66]
[1755776647823,0.308,4296.2,4296.1,4.673]
[1755776648019,0.002,4296.2,4296.1,4.9771]
[1755776648219,0.002,4296.2,4296.1,7.33923963]
[1755776648397,0.002,4296.2,4296.1,10.90773963]
[1755776648996,0.002,4296.7,4296.3,0.66]
[1755776649196,0.002,4296.7,4296.6,21.4126131]
[1755776649397,0.02127006,4296.8,4296.7,3.66]
[1755776649717,0.02127006,4296.8,4296.7,9.10610714]
[1755776650904,0.02127006,4296.8,4296.7,24.78875273]
[1755776651103,0.02127006,4296.8,4296.7,28.80175273]
[1755776651307,0.02047006,4296.8,4296.7,29.46175273]
[1755776652395,0.32647006,4296.8,4296.7,1.79]
[1755776652727,0.76177006,4296.8,4296.7,5.803]
[1755776653433,0.76177006,4296.8,4296.1,0.116]
[1755776653724,0.4353,4296.7,4296.1,4.012]
[1755776653927,0.306,4296.2,4296.1,4.012]
[1755776654299,0.7413,4296.2,4296.1,4.012]
[1755776654500,0.7413,4296.2,4295.6,0.001]
[1755776654714,0.4353,4296.1,4295.6,0.001]
[1755776654893,0.306,4295.7,4295.6,0.001]
[1755776655326,0.7413,4295.7,4295.6,0.001]
[1755776662937,0.99443,4295.7,4295.6,0.001]
[1755776674319,0.25313,4295.7,4295.6,0.001]
[1755776674555,4.013,4295.7,4295.6,0.3051]
[1755776674916,4.013,4295.7,4295.6,0.001]
[1755776675250,4.0122,4295.7,4295.6,0.001]
[1755776675667,4.0122,4295.7,4295.6,0.3051]
[1755776675921,4.0122,4295.7,4295.6,0.001]
[1755776676599,4.0122,4295.7,4295.6,0.3051]
[1755776677119,4.0122,4295.7,4295.6,0.001]
[1755776677995,4.0122,4295.7,4295.6,0.3051]
[1755776678802,4.0122,4295.7,4295.6,0.001]
[1755776678999,4.0122,4295.7,4295.6,0.2936]
[1755776679214,4.0122,4295.7,4295.6,0.001]
[1755776679712,4.0122,4295.7,4295.6,0.2936]
[1755776682518,1.79,4296.0,4295.6,0.2936]
[1755776682731,1.79,4296.0,4295.9,7.62309515]
[1755776682910,4.013,4296.2,4295.9,7.91569515]
[1755776683112,4.013,4296.2,4295.9,0.2926]
[1755776683289,4.013,4296.2,4295.8,7.62309515]
[1755776683290,0.2966,4296.0,4295.8,7.62309515]
[1755776684087,0.2966,4296.0,4295.6,0.001]
[1755776684289,0.4276,4295.9,4295.6,0.001]
[1755776684940,0.2966,4295.7,4295.6,0.001]
[1755776685090,7.91969515,4295.7,4295.6,0.001]
[1755776685294,8.56516086,4295.7,4295.6,0.001]
[1755776685602,0.94206571,4295.7,4295.6,0.001]
[1755776687236,11.56516086,4295.7,4295.6,0.001]
[1755776687408,12.44872844,4295.7,4295.6,0.001]
[1755776688631,12.44868106,4295.7,4295.6,0.001]
[1755776689690,12.57934091,4295.7,4295.6,0.001]
[1755776690728,4.95624576,4295.7,4295.6,0.001]
[1755776691628,4.95601729,4295.7,4295.6,0.001]
[1755776691826,40.55401729,4295.7,4295.6,0.001]
[1755776692001,11.05542745,4295.7,4295.6,0.001]
[1755776692191,15.06742745,4295.7,4295.6,0.001]
[1755776693027,11.05542745,4295.7,4295.6,0.001]
[1755776693213,15.06742745,4295.7,4295.6,0.001]
[1755776693417,11.05542745,4295.7,4295.6,0.001]
[1755776693727,14.56601729,4295.7,4295.6,0.001]
[1755776693931,14.56801729,4295.7,4295.6,0.001]
[1755776694431,14.43742365,4295.7,4295.6,0.001]
[1755776694645,14.43725856,4295.7,4295.6,0.001]
[1755776695337,14.56775328,4295.7,4295.6,0.001]
[1755776695919,14.43725856,4295.7,4295.6,0.001]
[1755776697927,14.4372043,4295.7,4295.6,0.001]
[1755776698651,14.43719001,4295.7,4295.6,0.001]
[1755776698863,14.43639001,4295.7,4295.6,0.001]
[1755776700051,31.91943875,4295.7,4295.6,0.001]
[1755776700254,63.08032574,4295.7,4295.6,0.001]
[1755776700452,65.40823504,4295.7,4295.6,0.001]
[1755776700618,65.40823504,4295.7,4295.2,0.001]
[1755776700619,21.01260983,4295.3,4295.2,0.001]
[1755776700819,56.7843229,4295.3,4295.2,0.001]
[1755776701044,57.2119229,4295.3,4295.2,0.001]
[1755776701228,59.54004899,4295.3,4295.2,0.001]
[1755776701428,4.58940833,4295.3,4295.2,0.001]
[1755776701646,9.02800833,4295.3,4295.2,0.001]
[1755776701851,8.52712134,4295.3,4295.2,0.001]
[1755776702037,4.38568243,4295.3,4295.2,0.001]
[1755776702242,4.38568243,4295.3,4295.2,0.2936]
[1755776702243,7.67248243,4295.3,4295.2,0.2936]
[1755776703230,3.66148243,4295.3,4295.2,0.2936]
[1755776703426,7.67248243,4295.3,4295.2,0.2936]
[1755776703847,3.66148243,4295.3,4295.2,0.2936]
[1755776704157,7.67248243,4295.3,4295.2,0.001]
[1755776704327,3.95808243,4295.3,4295.2,0.001]
[1755776704532,8.39668243,4295.3,4295.2,0.001]
[1755776705262,38.89605843,4295.3,4295.2,0.001]
[1755776705463,39.02613597,4295.3,4295.2,0.001]
[1755776705632,39.68613597,4295.3,4295.2,0.001]
[1755776706062,35.01478872,4295.3,4295.2,0.001]
[1755776706358,39.02578872,4295.3,4295.2,0.001]
[1755776709174,39.02603503,4295.3,4295.2,0.001]
[1755776709378,39.68603503,4295.3,4295.2,0.001]
[1755776710588,42.01416112,4295.3,4295.2,0.001]
[1755776711072,42.01416112,4295.3,4294.8,0.021]
[1755776711073,3.66,4295.2,4294.8,0.021]
[1755776711276,23.63245274,4294.9,4294.8,0.021]
[1755776711462,60.28222777,4294.9,4294.8,0.021]
[1755776711641,60.72172777,4294.9,4294.8,0.021]
[1755776711846,60.92172777,4294.9,4294.8,0.021]
[1755776712046,2.32870753,4294.3,4292.6,0.001]
[1755776712292,17.64410983,4293.9,4292.6,0.001]
[1755776712449,62.89442049,4293.9,4292.6,0.001]
[1755776712644,62.83400886,4293.9,4292.6,0.001]
[1755776712884,63.49400886,4293.9,4292.6,0.001]
[1755776713043,15.50378936,4293.9,4293.8,0.7648]
[1755776713405,14.403,4293.9,4293.8,0.7648]
[1755776713963,14.403,4293.9,4293.8,0.3074]
[1755776714598,14.403,4293.9,4293.8,0.7648]
[1755776714599,4.792,4293.9,4293.8,0.7648]
[1755776714753,8.803,4293.9,4293.8,0.7648]
[1755776717384,8.803,4293.9,4293.8,0.3074]
[1755776719455,27.98391887,4293.9,4293.8,0.02]
[1755776719755,57.98392353,4293.9,4293.8,0.02]
[1755776722582,57.98312353,4293.9,4293.8,0.02]
[1755776723089,57.88312353,4293.9,4293.8,0.02]
[1755776723657,58.6732215,4293.9,4293.8,0.02]
[1755776723885,59.17282777,4293.9,4293.8,0.02]
[1755776724591,58.95578896,4293.9,4293.8,0.02]
[1755776724894,2.98899364,4293.7,4292.9,0.001]
[1755776725092,20.64410983,4293.0,4292.9,0.001]
[1755776725259,45.7011918,4293.0,4292.9,0.001]
[1755776725464,63.99242432,4293.0,4292.9,0.001]
[1755776725661,64.10920046,4293.0,4292.9,0.001]
[1755776725990,64.98950046,4293.0,4292.9,0.001]
[1755776727590,67.31887385,4293.0,4292.9,0.001]
[1755776727760,64.98950046,4293.0,4292.9,0.001]
[1755776727960,47.63689063,4293.0,4292.9,0.001]
[1755776728273,64.98950046,4293.0,4292.9,0.001]
[1755776728475,64.99050046,4293.0,4292.9,0.001]
[1755776730098,64.98950046,4293.0,4292.9,0.001]
[1755776730293,65.08295246,4293.0,4292.9,0.001]
[1755776730596,67.41232585,4293.0,4292.9,0.001]
[1755776730792,65.08295246,4293.0,4292.9,0.001]
[1755776732584,67.61232585,4293.0,4292.9,0.001]
[1755776732784,67.41232585,4293.0,4292.9,0.001]
[1755776732989,67.61232585,4293.0,4292.9,0.001]
[1755776733997,5.98942765,4292.9,4292.8,0.021]
[1755776734168,37.57323046,4292.9,4292.8,0.021]
[1755776734370,38.0127168,4292.9,4292.8,0.021]
[1755776734978,35.68328915,4292.9,4292.8,0.021]
[1755776735376,5.68328915,4292.9,4292.8,0.021]
[1755776735588,35.68328915,4292.9,4292.8,0.021]
[1755776736706,33.08528915,4292.9,4292.8,0.3084]
[1755776736903,36.46747688,4292.9,4292.8,0.3084]
[1755776737271,39.46747688,4292.9,4292.8,0.3084]
[1755776737897,39.46747688,4292.9,4292.8,0.021]
[1755776738097,36.46747688,4292.9,4292.8,0.021]
[1755776738505,6.46747688,4292.9,4292.8,0.021]
[1755776738701,39.46747688,4292.9,4292.8,0.021]
[1755776739007,39.59723256,4292.9,4292.8,0.021]
[1755776739705,9.59723256,4292.9,4292.8,0.3254]
[1755776739904,9.46747688,4292.9,4292.8,0.3254]
[1755776740096,56.94993064,4292.9,4292.8,0.3254]
[1755776740999,53.94993064,4292.9,4292.8,0.3254]
[1755776741974,32.58632081,4292.9,4292.8,0.3254]
[1755776742174,5.45647688,4292.9,4292.8,0.3254]
[1755776742409,4.793,4292.9,4292.8,0.8]
[1755776742576,8.804,4292.9,4292.8,0.8]
[1755776743415,1.793,4292.9,4292.8,0.8]
[1755776743910,5.803,4292.9,4292.8,0.8]
[1755776744409,1.793,4292.9,4292.8,0.8]
[1755776744609,5.803,4292.9,4292.8,2.61536098]
[1755776745509,1.793,4293.6,4292.8,2.61536098]
[1755776745708,4.01,4293.5,4292.9,0.4746]
[1755776745916,4.01,4293.5,4293.4,0.3044]
[1755776746326,4.0092,4293.5,4293.4,0.779]
[1755776746528,4.01,4293.5,4293.4,0.779]
[1755776747183,1.793,4293.6,4293.4,0.779]
[1755776747388,1.793,4293.6,4293.4,0.3044]
[1755776747684,4.01,4293.5,4293.4,0.3044]
[1755776749194,7.01,4293.5,4293.4,0.3044]
[1755776749396,3.0,4293.4,4292.8,0.021]
[1755776749609,20.63890983,4292.9,4292.8,0.021]
[1755776749782,7.009,4292.9,4292.8,0.3254]
[1755776749987,7.009,4292.9,4292.8,0.021]
[1755776750384,7.7272,4292.9,4292.8,0.021]
[1755776750585,7.74242758,4292.9,4292.8,0.021]
[1755776750953,7.45612758,4292.9,4292.8,0.3254]
[1755776751119,7.45612758,4292.9,4292.8,0.021]
[1755776751619,7.45612758,4292.9,4292.8,0.3254]
[1755776752407,7.45612758,4292.9,4292.8,0.021]
[1755776753741,8.17432758,4292.9,4292.8,0.021]
[1755776754498,39.18069022,4292.9,4292.8,0.021]
[1755776754804,39.67945043,4292.9,4292.8,0.021]
[1755776755151,55.93916026,4292.9,4292.8,0.021]
[1755776755291,55.31051747,4292.9,4292.8,0.021]
[1755776755493,55.52593741,4292.9,4292.8,0.021]
[1755776755693,7.45512758,4292.9,4292.8,0.021]
[1755776755900,7.45512758,4292.9,4292.8,0.3254]
[1755776755901,3.0,4292.9,4292.8,0.3254]
[1755776756125,7.008,4292.9,4292.8,0.3254]
[1755776756810,7.008,4292.9,4292.8,0.021]
[1755776756811,54.64690983,4292.9,4292.8,0.021]
[1755776757028,24.64690983,4292.9,4292.8,0.021]
[1755776757841,25.07880983,4292.9,4292.8,0.021]
[1755776758397,24.64690983,4292.9,4292.8,0.021]
[1755776758725,55.07880983,4292.9,4292.8,0.021]
[1755776759294,54.64690983,4292.9,4292.8,0.021]
[1755776759695,55.07880983,4292.9,4292.8,0.021]
[1755776760206,54.64690983,4292.9,4292.8,0.021]
[1755776760411,55.07880983,4292.9,4292.8,0.021]
[1755776761094,54.64690983,4292.9,4292.8,0.021]
[1755776761296,3.0,4292.9,4292.8,0.3254]
[1755776761522,7.008,4292.9,4292.8,0.021]
[1755776761707,25.07880983,4292.9,4292.8,0.021]
[1755776761909,55.07880983,4292.9,4292.8,0.021]
[1755776762298,7.008,4292.9,4292.8,0.3254]
[1755776762498,3.0,4292.9,4292.8,0.8]
[1755776762694,7.008,4292.9,4292.8,0.8]
[1755776763326,5.602,4293.2,4292.8,0.8]
[1755776763528,1.793,4293.6,4292.9,0.02329427]
[1755776763732,1.793,4293.6,4293.5,0.3044]
[1755776764055,5.801,4293.6,4293.5,0.779]
[1755776766518,5.801,4293.6,4293.5,0.3044]
[1755776766719,5.801,4293.6,4293.0,0.1168]
[1755776766720,3.0,4293.5,4292.8,0.021]
[1755776766947,4.008,4293.4,4292.8,0.021]
[1755776767122,4.008,4293.3,4292.8,0.021]
[1755776767330,3.0,4293.2,4292.8,0.021]
[1755776767652,3.0,4293.0,4292.8,0.021]
[1755776767954,7.007,4292.9,4292.8,0.021]
[1755776768548,7.7446,4292.9,4292.8,0.021]
[1755776769307,37.7446,4292.9,4292.8,0.021]